[Event "22nd Trieste Masters Open 2020"]
[Site "Trieste"]
[Date "2020.08.31"]
[Round "3.2"]
[White "Jovanic, Ognjen"]
[Black "Bosiocic, Marin"]
[Result "0-1"]
[ECO "A46"]
[WhiteElo "2526"]
[BlackElo "2606"]
[Annotator "ChessBase"]
[PlyCount "108"]
[EventDate "2020.08.31"]
[EventType "swiss"]
[EventCountry "ITA"]
[SourceTitle "playchess.com"]
[Source "ChessBase"]
[SourceQuality "1"]
[TimeControl "5400+30"]

1. d4 {[%emt 0:00:00]} Nf6 {[%emt 0:00:00]} 2. c3 {[%emt 0:00:46]} c5 {[%emt 0:02:45]} 3. Nf3 {[%emt 0:01:05]} e6 {[%emt 0:00:28]} 4. a3 {[%emt 0:02:06]} Nc6 {[%emt 0:02:12]} 5. Bf4 {[%emt 0:07:02]} Qb6 {[%emt 0:02:39]} 6. Ra2 {[%emt 0:00:24]} cxd4 {[%emt 0:06:36]} 7. cxd4 {[%emt 0:00:39]} Ne4 {[%emt 0:00:26]} 8. Nbd2 {[%emt 0:08:05]} Nxd2 {[%emt 0:04:22]} 9. Qxd2 {[%emt 0:00:50]} Be7 {[%emt 0:00:12]} 10. e3 {[%emt 0:06:37]} f6 {[%emt 0:06:10]} 11. h4 {[%emt 0:06:17]} a5 {[%emt 0:04:08]} 12. Ra1 {[%emt 0:03:56]} a4 {[%emt 0:01:17]} 13. Rc1 {[%emt 0:00:12]} d6 {[%emt 0:02:23]} 14. e4 {[%emt 0:06:51]} Na5 {[%emt 0:02:33]} 15. Rc3 {[%emt 0:02:44]} Nb3 {[%emt 0:04:05]} 16. Qc2 {[%emt 0:01:45]} Bd7 {[%emt 0:03:51]} 17. Be3 {[%emt 0:00:31]} Qa5 {[%emt 0:05:14]} 18. Nd2 {[%emt 0:03:26]} Nxd2 {[%emt 0:06:28]} 19. Bxd2 {[%emt 0:00:07]} Qb6 {[%emt 0:01:29]} 20. Be3 {[%emt 0:01:01]} O-O {[%emt 0:01:18]} 21. Bc4 {[%emt 0:06:09]} Qd8 {[%emt 0:00:07]} 22. h5 {[%emt 0:02:45]} Kh8 {[%emt 0:00:34]} 23. d5 {[%emt 0:06:34]} e5 {[%emt 0:04:35]} 24. Bd3 {[%emt 0:00:12]} Qe8 {[%emt 0:02:52]} 25. f3 {[%emt 0:01:05]} Bd8 {[%emt 0:00:34]} 26. Ke2 {[%emt 0:07:06]} Ba5 {[%emt 0:00:54]} 27. Rc4 {[%emt 0:02:04]} Bb5 {[%emt 0:00:20]} 28. h6 {[%emt 0:05:52]} g5 {[%emt 0:00:40]} 29. Rc1 {[%emt 0:01:41]} Bxc4 {[%emt 0:01:16]} 30. Qxc4 {[%emt 0:00:01]} Rc8 {[%emt 0:01:30]} 31. Qb5 {[%emt 0:02:57]} Qxb5 {[%emt 0:02:31]} 32. Bxb5 {[%emt 0:00:03]} Rxc1 {[%emt 0:00:35]} 33. Bxc1 {[%emt 0:00:02]} Rc8 {[%emt 0:04:26]} 34. Kd1 {[%emt 0:00:02]} Rg8 {[%emt 0:00:57]} 35. Bxa4 {[%emt 0:03:59]} Rg6 {[%emt 0:00:37]} 36. Bd7 {[%emt 0:00:39]} Rxh6 {[%emt 0:00:15]} 37. Bh3 {[%emt 0:00:04]} Bb6 {[%emt 0:01:38]} 38. Bd2 {[%emt 0:00:15]} Kg7 {[%emt 0:00:55]} 39. a4 {[%emt 0:00:42]} Kf8 {[%emt 0:04:46]} 40. a5 {[%emt 0:01:02]} Bd4 {[%emt 0:00:55]} 41. b4 {[%emt 0:00:15]} b5 {[%emt 0:01:51]} 42. Ke2 {[%emt 0:03:49]} Ke7 {[%emt 0:00:21]} 43. Be1 {[%emt 0:05:38]} Kd8 {[%emt 0:00:20]} 44. Bf2 {[%emt 0:00:33]} Bxf2 {[%emt 0:02:34]} 45. Kxf2 {[%emt 0:00:02]} Kc7 {[%emt 0:03:48]} 46. Kg3 {[%emt 0:00:09]} Rh4 {[%emt 0:02:34]} 47. Kh2 {[%emt 0:00:38]} f5 {[%emt 0:01:34]} 48. g3 {[%emt 0:00:32]} Rh6 {[%emt 0:00:16]} 49. exf5 {[%emt 0:03:15]} e4 {[%emt 0:00:32]} 50. f6 {[%emt 0:01:19]} Rxf6 {[%emt 0:03:20]} 51. fxe4 {[%emt 0:00:29]} Rf2+ {[%emt 0:00:05]} 52. Bg2 {[%emt 0:01:01]} Rb2 {[%emt 0:00:13]} 53. e5 {[%emt 0:00:11]} dxe5 {[%emt 0:00:19]} 54. a6 {[%emt 0:00:09]} Ra2 {[%emt 0:00:46]} 0-1

[Event "22nd Trieste Masters Open 2020"]
[Site "Trieste"]
[Date "2020.08.31"]
[Round "3.3"]
[White "Brunello, Sabino"]
[Black "Sepehrkhoui, Ardeshir"]
[Result "1/2-1/2"]
[ECO "E16"]
[WhiteElo "2532"]
[BlackElo "2237"]
[Annotator "ChessBase"]
[PlyCount "149"]
[EventDate "2020.08.31"]
[EventType "swiss"]
[EventCountry "ITA"]
[SourceTitle "playchess.com"]
[Source "ChessBase"]
[SourceQuality "1"]
[TimeControl "5400+30"]

1. d4 {[%emt 0:00:00]} Nf6 {[%emt 0:00:00]} 2. c4 {[%emt 0:00:00]} e6 {[%emt 0:01:37]} 3. Nf3 {[%emt 0:00:00]} Bb4+ {[%emt 0:00:11]} 4. Bd2 {[%emt 0:00:15]} a5 {[%emt 0:00:41]} 5. g3 {[%emt 0:00:37]} b6 {[%emt 0:04:56]} 6. Bg2 {[%emt 0:00:33]} Bb7 {[%emt 0:00:02]} 7. O-O {[%emt 0:00:30]} Bxd2 {[%emt 0:00:07]} 8. Nbxd2 {[%emt 0:02:39]} O-O {[%emt 0:03:59]} 9. Qc2 {[%emt 0:13:20]} d6 {[%emt 0:08:50]} 10. e4 {[%emt 0:09:02]} Nc6 {[%emt 0:17:38]} 11. Rad1 {[%emt 0:10:28]} Qe7 {[%emt 0:05:34]} 12. Rfe1 {[%emt 0:07:43]} e5 {[%emt 0:12:43]} 13. Nf1 {[%emt 0:04:20]} Rfe8 {[%emt 0:02:36]} 14. d5 {[%emt 0:05:46]} Nb4 {[%emt 0:00:23]} 15. Qb1 {[%emt 0:00:10]} Na6 {[%emt 0:03:54]} 16. Ne3 {[%emt 0:00:59]} Bc8 {[%emt 0:00:52]} 17. b3 {[%emt 0:01:58]} Nc5 {[%emt 0:02:50]} 18. Nd2 {[%emt 0:00:35]} Bd7 {[%emt 0:04:12]} 19. Rc1 {[%emt 0:05:59]} Reb8 {[%emt 0:04:39]} 20. a3 {[%emt 0:05:51]} b5 {[%emt 0:02:02]} 21. cxb5 {[%emt 0:06:32]} Bxb5 {[%emt 0:00:11]} 22. Rc3 {[%emt 0:00:22]} c6 {[%emt 0:10:31]} 23. dxc6 {[%emt 0:09:46]} Bxc6 {[%emt 0:00:24]} 24. Nf5 {[%emt 0:00:16]} Qd7 {[%emt 0:03:34]} 25. Qc2 {[%emt 0:02:17]} Nfxe4 {[%emt 0:05:20]} 26. Nxe4 {[%emt 0:05:20]} Qxf5 {[%emt 0:00:14]} 27. Nxd6 {[%emt 0:00:46]} Qxc2 {[%emt 0:00:08]} 28. Rxc2 {[%emt 0:00:03]} Bxg2 {[%emt 0:02:44]} 29. Kxg2 {[%emt 0:00:01]} Nd3 {[%emt 0:02:27]} 30. Re3 {[%emt 0:04:36]} Rxb3 {[%emt 0:00:12]} 31. Rd2 {[%emt 0:00:17]} Nc5 {[%emt 0:01:09]} 32. Rxe5 {[%emt 0:00:09]} Ne6 {[%emt 0:00:31]} 33. Nc4 {[%emt 0:03:57]} a4 {[%emt 0:00:14]} 34. Rd7 {[%emt 0:00:44]} g6 {[%emt 0:00:49]} 35. Re2 {[%emt 0:00:52]} Rc3 {[%emt 0:00:36]} 36. Ne5 {[%emt 0:00:15]} Rc7 {[%emt 0:00:00]} 37. Re4 {[%emt 0:00:35]} Rxd7 {[%emt 0:00:28]} 38. Nxd7 {[%emt 0:00:01]} Ra6 {[%emt 0:00:54]} 39. Rc4 {[%emt 0:00:56]} Kg7 {[%emt 0:00:13]} 40. Ne5 {[%emt 0:00:17]} Ra7 {[%emt 0:00:58]} 41. Kf3 {[%emt 0:00:51]} Nc7 {[%emt 0:00:11]} 42. Nc6 {[%emt 0:00:17]} Ra8 {[%emt 0:00:16]} 43. Nd4 {[%emt 0:00:33]} Ne6 {[%emt 0:00:46]} 44. Nxe6+ {[%emt 0:00:53]} fxe6 {[%emt 0:00:01]} 45. Ke4 {[%emt 0:00:26]} Kf6 {[%emt 0:00:13]} 46. h4 {[%emt 0:00:37]} h5 {[%emt 0:00:12]} 47. f3 {[%emt 0:00:29]} Ra5 {[%emt 0:00:03]} 48. g4 {[%emt 0:00:23]} g5 {[%emt 0:00:27]} 49. hxg5+ {[%emt 0:00:39]} Rxg5 {[%emt 0:02:17]} 50. gxh5 {[%emt 0:00:07]} Re5+ {[%emt 0:00:20]} 51. Kd3 {[%emt 0:00:22]} Rf5 {[%emt 0:00:43]} 52. Ke3 {[%emt 0:00:49]} Rxh5 {[%emt 0:00:17]} 53. Rxa4 {[%emt 0:00:01]} Re5+ {[%emt 0:00:12]} 54. Re4 {[%emt 0:00:48]} Rd5 {[%emt 0:00:56]} 55. Rd4 {[%emt 0:00:34]} Ra5 {[%emt 0:00:11]} 56. a4 {[%emt 0:00:16]} e5 {[%emt 0:00:28]} 57. Rc4 {[%emt 0:00:20]} Kf5 {[%emt 0:00:34]} 58. Kd3 {[%emt 0:00:33]} Rd5+ {[%emt 0:00:41]} 59. Kc2 {[%emt 0:00:59]} Ke6 {[%emt 0:00:15]} 60. Kb3 {[%emt 0:00:31]} Kd6 {[%emt 0:00:46]} 61. Kb4 {[%emt 0:00:25]} Rd3 {[%emt 0:00:42]} 62. Rc3 {[%emt 0:00:24]} Rd4+ {[%emt 0:00:17]} 63. Kb5 {[%emt 0:00:35]} e4 {[%emt 0:00:00]} 64. fxe4 {[%emt 0:00:47]} Rxe4 {[%emt 0:00:01]} 65. a5 {[%emt 0:00:23]} Re1 {[%emt 0:00:36]} 66. a6 {[%emt 0:00:33]} Rb1+ {[%emt 0:00:03]} 67. Ka5 {[%emt 0:00:08]} Ra1+ {[%emt 0:01:42]} 68. Kb6 {[%emt 0:00:01]} Rb1+ {[%emt 0:00:03]} 69. Ka7 {[%emt 0:00:03]} Kd7 {[%emt 0:00:54]} 70. Ka8 {[%emt 0:00:06]} Rb2 {[%emt 0:00:32]} 71. a7 {[%emt 0:00:06]} Rb1 {[%emt 0:00:15]} 72. Rc2 {[%emt 0:00:07]} Rb3 {[%emt 0:00:11]} 73. Rh2 {[%emt 0:00:04]} Kc7 {[%emt 0:00:24]} 74. Rh8 {[%emt 0:00:08]} Rb1 {[%emt 0:01:16]} 75. Rh7+ {[%emt 0:00:06]} 1/2-1/2

[Event "22nd Trieste Masters Open 2020"]
[Site "Trieste"]
[Date "2020.08.31"]
[Round "3.4"]
[White "Samuelli, Daniele"]
[Black "Moroni, Luca Jr"]
[Result "0-1"]
[ECO "A47"]
[WhiteElo "1946"]
[BlackElo "2530"]
[Annotator "ChessBase"]
[PlyCount "54"]
[EventDate "2020.08.31"]
[EventType "swiss"]
[EventCountry "ITA"]
[SourceTitle "playchess.com"]
[Source "ChessBase"]
[SourceQuality "1"]
[TimeControl "5400+30"]

1. Nf3 {[%emt 0:01:52]} d5 {[%emt 0:00:00]} 2. d4 {[%emt 0:00:26]} e6 {[%emt 0:00:07]} 3. e3 {[%emt 0:00:30]} Nf6 {[%emt 0:00:21]} 4. Be2 {[%emt 0:01:09]} Bd6 {[%emt 0:00:06]} 5. b3 {[%emt 0:01:47]} O-O {[%emt 0:01:09]} 6. O-O {[%emt 0:00:14]} b6 {[%emt 0:00:09]} 7. Bb2 {[%emt 0:00:46]} Bb7 {[%emt 0:00:19]} 8. Ne5 {[%emt 0:01:38]} c5 {[%emt 0:01:17]} 9. dxc5 {[%emt 0:03:27]} bxc5 {[%emt 0:00:31]} 10. c4 {[%emt 0:00:15]} Ne4 {[%emt 0:04:11]} 11. cxd5 {[%emt 0:03:13]} exd5 {[%emt 0:00:44]} 12. Nd2 {[%emt 0:00:58]} Nxd2 {[%emt 0:02:47]} 13. Qxd2 {[%emt 0:00:29]} Qe7 {[%emt 0:01:06]} 14. Qc3 {[%emt 0:04:21]} f6 {[%emt 0:01:23]} 15. Nf3 {[%emt 0:01:09]} Nd7 {[%emt 0:00:15]} 16. Rfe1 {[%emt 0:05:13]} Ne5 {[%emt 0:02:39]} 17. Nh4 {[%emt 0:04:37]} f5 {[%emt 0:05:18]} 18. Nf3 {[%emt 0:00:27]} Ng4 {[%emt 0:01:27]} 19. Bd3 {[%emt 0:04:09]} Qd7 {[%emt 0:10:39]} 20. Qc2 {[%emt 0:04:44]} d4 {[%emt 0:04:21]} 21. Bc4+ {[%emt 0:08:29]} Kh8 {[%emt 0:00:45]} 22. exd4 {[%emt 0:04:39]} Bxf3 {[%emt 0:00:39]} 23. gxf3 {[%emt 0:04:41]} Nxh2 {[%emt 0:01:12]} 24. Kh1 {[%emt 0:09:13]} Nxf3 {[%emt 0:03:05]} 25. Be6 {[%emt 0:02:26]} Qd8 {[%emt 0:01:34]} 26. dxc5 {[%emt 0:04:07]} Qh4+ {[%emt 0:00:07]} 27. Kg2 {[%emt 0:00:06]} Qg4+ {[%emt 0:00:04]} 0-1

[Event "22nd Trieste Masters Open 2020"]
[Site "Trieste"]
[Date "2020.08.31"]
[Round "3.5"]
[White "Candian, Lorenzo"]
[Black "Gilevych, Artem"]
[Result "0-1"]
[ECO "B00"]
[WhiteElo "1885"]
[BlackElo "2419"]
[Annotator "ChessBase"]
[PlyCount "120"]
[EventDate "2020.08.31"]
[EventType "swiss"]
[EventCountry "ITA"]
[SourceTitle "playchess.com"]
[Source "ChessBase"]
[SourceQuality "1"]
[TimeControl "5400+30"]

1. e4 {[%emt 0:00:00]} Nc6 {[%emt 0:03:57]} 2. Nf3 {[%emt 0:00:26]} d6 {[%emt 0:01:17]} 3. d4 {[%emt 0:00:28]} Nf6 {[%emt 0:00:16]} 4. Nc3 {[%emt 0:01:01]} Bg4 {[%emt 0:00:05]} 5. Bb5 {[%emt 0:01:34]} a6 {[%emt 0:00:32]} 6. Bxc6+ {[%emt 0:01:10]} bxc6 {[%emt 0:00:05]} 7. O-O {[%emt 0:01:45]} e6 {[%emt 0:00:25]} 8. Re1 {[%emt 0:04:54]} Be7 {[%emt 0:00:07]} 9. Bf4 {[%emt 0:08:05]} O-O {[%emt 0:00:17]} 10. h3 {[%emt 0:02:49]} Bh5 {[%emt 0:01:10]} 11. Qd3 {[%emt 0:05:37]} Nd7 {[%emt 0:04:54]} 12. Rad1 {[%emt 0:06:59]} c5 {[%emt 0:00:57]} 13. d5 {[%emt 0:00:49]} Bxf3 {[%emt 0:05:09]} 14. Qxf3 {[%emt 0:00:36]} Bf6 {[%emt 0:00:14]} 15. Qg4 {[%emt 0:07:33]} Qe7 {[%emt 0:02:30]} 16. Bg3 {[%emt 0:08:55]} Bxc3 {[%emt 0:00:37]} 17. bxc3 {[%emt 0:00:09]} e5 {[%emt 0:00:59]} 18. Bh4 {[%emt 0:00:53]} f6 {[%emt 0:00:08]} 19. c4 {[%emt 0:01:57]} Nb6 {[%emt 0:01:33]} 20. Qe2 {[%emt 0:05:03]} Qd7 {[%emt 0:00:05]} 21. c3 {[%emt 0:01:23]} Qa4 {[%emt 0:00:31]} 22. Rb1 {[%emt 0:00:52]} Qxc4 {[%emt 0:01:58]} 23. Qxc4 {[%emt 0:00:35]} Nxc4 {[%emt 0:00:03]} 24. Rb7 {[%emt 0:00:26]} Rf7 {[%emt 0:01:08]} 25. f3 {[%emt 0:01:15]} Na5 {[%emt 0:07:37]} 26. Rb2 {[%emt 0:00:34]} Kf8 {[%emt 0:00:17]} 27. Reb1 {[%emt 0:00:33]} Ke7 {[%emt 0:00:07]} 28. Be1 {[%emt 0:02:08]} Kd7 {[%emt 0:02:59]} 29. Kf2 {[%emt 0:01:01]} Nc4 {[%emt 0:02:57]} 30. Rb3 {[%emt 0:01:11]} f5 {[%emt 0:02:58]} 31. Ke2 {[%emt 0:02:59]} fxe4 {[%emt 0:00:10]} 32. fxe4 {[%emt 0:00:11]} Nb6 {[%emt 0:00:53]} 33. R3b2 {[%emt 0:02:08]} Rf4 {[%emt 0:03:13]} 34. Kd3 {[%emt 0:00:34]} Na4 {[%emt 0:00:31]} 35. Re2 {[%emt 0:01:15]} c4+ {[%emt 0:02:27]} 36. Kxc4 {[%emt 0:01:35]} Nc5 {[%emt 0:00:05]} 37. Bd2 {[%emt 0:00:22]} Rxe4+ {[%emt 0:00:06]} 38. Rxe4 {[%emt 0:00:06]} Nxe4 {[%emt 0:00:03]} 39. Be3 {[%emt 0:00:20]} Nf6 {[%emt 0:09:58]} 40. Rb2 {[%emt 0:01:52]} Kc8 {[%emt 0:04:04]} 41. Bg5 {[%emt 0:02:14]} Rb8 {[%emt 0:01:28]} 42. Rf2 {[%emt 0:00:58]} Ne4 {[%emt 0:00:15]} 43. Rf8+ {[%emt 0:00:08]} Kb7 {[%emt 0:00:04]} 44. Rxb8+ {[%emt 0:00:11]} Kxb8 {[%emt 0:00:03]} 45. Be3 {[%emt 0:00:12]} Nf6 {[%emt 0:00:51]} 46. Bf2 {[%emt 0:00:32]} h5 {[%emt 0:01:04]} 47. a4 {[%emt 0:00:21]} Kc8 {[%emt 0:00:14]} 48. Be3 {[%emt 0:00:26]} Kd7 {[%emt 0:00:04]} 49. Bf2 {[%emt 0:00:48]} Ke8 {[%emt 0:05:06]} 50. Be3 {[%emt 0:00:12]} Kd7 {[%emt 0:00:51]} 51. Bf2 {[%emt 0:00:44]} c6 {[%emt 0:00:04]} 52. dxc6+ {[%emt 0:00:10]} Kxc6 {[%emt 0:00:03]} 53. Be3 {[%emt 0:00:33]} Nd5 {[%emt 0:01:30]} 54. Bd2 {[%emt 0:00:44]} Nb6+ {[%emt 0:01:00]} 55. Kb4 {[%emt 0:00:11]} Kd5 {[%emt 0:00:16]} 56. Be3 {[%emt 0:00:50]} Nc4 {[%emt 0:00:05]} 57. Bf2 {[%emt 0:00:14]} e4 {[%emt 0:00:59]} 58. Kb3 {[%emt 0:00:13]} e3 {[%emt 0:01:26]} 59. Be1 {[%emt 0:00:08]} e2 {[%emt 0:00:50]} 60. g3 {[%emt 0:00:57]} Ne3 {[%emt 0:00:49]} 0-1

[Event "22nd Trieste Masters Open 2020"]
[Site "Trieste"]
[Date "2020.08.31"]
[Round "4.1"]
[White "Bosiocic, Marin"]
[Black "Moroni, Luca Jr"]
[Result "1/2-1/2"]
[ECO "C78"]
[WhiteElo "2606"]
[BlackElo "2530"]
[Annotator "ChessBase"]
[PlyCount "55"]
[EventDate "2020.08.31"]
[EventType "swiss"]
[EventCountry "ITA"]
[SourceTitle "playchess.com"]
[Source "ChessBase"]
[SourceQuality "1"]
[TimeControl "5400+30"]

1. e4 {[%emt 0:01:00]} e5 {[%emt 0:00:00]} 2. Nf3 {[%emt 0:00:03]} Nc6 {[%emt 0:00:00]} 3. Bb5 {[%emt 0:00:05]} a6 {[%emt 0:00:00]} 4. Ba4 {[%emt 0:00:04]} Nf6 {[%emt 0:00:00]} 5. O-O {[%emt 0:00:06]} b5 {[%emt 0:00:00]} 6. Bb3 {[%emt 0:00:06]} Bc5 {[%emt 0:00:00]} 7. c3 {[%emt 0:00:07]} d6 {[%emt 0:00:00]} 8. d4 {[%emt 0:00:05]} Bb6 {[%emt 0:00:00]} 9. a4 {[%emt 0:00:05]} Rb8 {[%emt 0:00:00]} 10. a5 {[%emt 0:00:04]} Ba7 {[%emt 0:00:03]} 11. h3 {[%emt 0:00:07]} O-O {[%emt 0:00:12]} 12. Be3 {[%emt 0:00:08]} exd4 {[%emt 0:02:47]} 13. cxd4 {[%emt 0:00:09]} Nb4 {[%emt 0:00:31]} 14. Nc3 {[%emt 0:00:19]} Bb7 {[%emt 0:01:00]} 15. Re1 {[%emt 0:00:14]} Nxe4 {[%emt 0:20:36]} 16. Nxe4 {[%emt 0:40:51]} Bxe4 {[%emt 0:00:07]} 17. Bd2 {[%emt 0:01:30]} Bxf3 {[%emt 0:00:31]} 18. Qxf3 {[%emt 0:00:05]} c5 {[%emt 0:00:39]} 19. Qg3 {[%emt 0:06:19]} Kh8 {[%emt 0:08:44]} 20. Bc3 {[%emt 0:17:52]} f6 {[%emt 0:04:10]} 21. Re6 {[%emt 0:04:47]} Nc6 {[%emt 0:04:53]} 22. Rxd6 {[%emt 0:11:40]} Qc7 {[%emt 0:03:35]} 23. d5 {[%emt 0:00:30]} c4 {[%emt 0:03:12]} 24. dxc6 {[%emt 0:01:24]} Bc5 {[%emt 0:00:35]} 25. Rad1 {[%emt 0:08:47]} Bxd6 {[%emt 0:12:12]} 26. Rxd6 {[%emt 0:00:05]} cxb3 {[%emt 0:00:32]} 27. Be5 {[%emt 0:01:54]} fxe5 {[%emt 0:08:38]} 28. Rd7 {[%emt 0:00:05]} 1/2-1/2

[Event "22nd Trieste Masters Open 2020"]
[Site "Trieste"]
[Date "2020.08.31"]
[Round "4.3"]
[White "Korneev, Oleg"]
[Black "Brunello, Sabino"]
[Result "1/2-1/2"]
[ECO "D02"]
[WhiteElo "2517"]
[BlackElo "2532"]
[Annotator "ChessBase"]
[PlyCount "22"]
[EventDate "2020.08.31"]
[EventType "swiss"]
[EventCountry "ITA"]
[SourceTitle "playchess.com"]
[Source "ChessBase"]
[SourceQuality "1"]
[TimeControl "5400+30"]

1. d4 {[%emt 0:07:21]} d5 {[%emt 0:00:21]} 2. Nf3 {[%emt 0:00:06]} Nf6 {[%emt 0:02:06]} 3. Bf4 {[%emt 0:02:01]} c5 {[%emt 0:09:50]} 4. e3 {[%emt 0:00:03]} Nc6 {[%emt 0:00:22]} 5. Nbd2 {[%emt 0:00:04]} Nh5 {[%emt 0:04:27]} 6. Be5 {[%emt 0:04:22]} e6 {[%emt 0:14:17]} 7. h3 {[%emt 0:01:37]} cxd4 {[%emt 0:08:58]} 8. exd4 {[%emt 0:00:51]} Bd6 {[%emt 0:02:32]} 9. Bb5 {[%emt 0:11:24]} O-O {[%emt 0:05:49]} 10. Bxd6 {[%emt 0:00:35]} Qxd6 {[%emt 0:00:52]} 11. O-O {[%emt 0:00:06]} Nf4 {[%emt 0:04:10]} 1/2-1/2

[Event "22nd Trieste Masters Open 2020"]
[Site "Trieste"]
[Date "2020.08.31"]
[Round "4.4"]
[White "Mazi, Leon"]
[Black "Jovanic, Ognjen"]
[Result "1/2-1/2"]
[ECO "C42"]
[WhiteElo "2354"]
[BlackElo "2526"]
[Annotator "ChessBase"]
[PlyCount "96"]
[EventDate "2020.08.31"]
[EventType "swiss"]
[EventCountry "ITA"]
[SourceTitle "playchess.com"]
[Source "ChessBase"]
[SourceQuality "1"]
[TimeControl "5400+30"]

1. e4 {[%emt 0:00:39]} e5 {[%emt 0:00:00]} 2. Nf3 {[%emt 0:01:46]} Nf6 {[%emt 0:00:10]} 3. Nxe5 {[%emt 0:01:52]} d6 {[%emt 0:00:08]} 4. Nf3 {[%emt 0:00:15]} Nxe4 {[%emt 0:00:10]} 5. Qe2 {[%emt 0:00:31]} Qe7 {[%emt 0:00:37]} 6. d3 {[%emt 0:00:22]} Nf6 {[%emt 0:00:35]} 7. Bg5 {[%emt 0:00:44]} Qxe2+ {[%emt 0:04:59]} 8. Bxe2 {[%emt 0:01:36]} Nbd7 {[%emt 0:00:13]} 9. Nc3 {[%emt 0:02:44]} h6 {[%emt 0:01:24]} 10. Bd2 {[%emt 0:03:34]} c6 {[%emt 0:01:24]} 11. O-O-O {[%emt 0:04:20]} d5 {[%emt 0:01:31]} 12. Rde1 {[%emt 0:01:48]} Nc5 {[%emt 0:04:58]} 13. Bd1+ {[%emt 0:04:58]} Ne6 {[%emt 0:00:19]} 14. Ne5 {[%emt 0:01:57]} Nd7 {[%emt 0:13:40]} 15. f4 {[%emt 0:12:44]} Nxe5 {[%emt 0:00:15]} 16. Rxe5 {[%emt 0:00:12]} Bd6 {[%emt 0:00:35]} 17. Ree1 {[%emt 0:00:39]} Kf8 {[%emt 0:03:04]} 18. Rhf1 {[%emt 0:03:20]} Bd7 {[%emt 0:02:40]} 19. Ne2 {[%emt 0:04:04]} Re8 {[%emt 0:08:29]} 20. g3 {[%emt 0:02:30]} h5 {[%emt 0:07:53]} 21. Ng1 {[%emt 0:04:21]} Nc7 {[%emt 0:08:43]} 22. Bc3 {[%emt 0:07:20]} Rxe1 {[%emt 0:00:29]} 23. Rxe1 {[%emt 0:00:08]} f6 {[%emt 0:04:57]} 24. Nf3 {[%emt 0:03:03]} Kf7 {[%emt 0:04:19]} 25. Nh4 {[%emt 0:04:53]} g6 {[%emt 0:07:17]} 26. Bd2 {[%emt 0:01:04]} Bg4 {[%emt 0:01:41]} 27. c3 {[%emt 0:02:47]} Bxd1 {[%emt 0:02:39]} 28. Kxd1 {[%emt 0:00:06]} Re8 {[%emt 0:00:53]} 29. Be3 {[%emt 0:03:23]} c5 {[%emt 0:01:43]} 30. Kd2 {[%emt 0:00:43]} b6 {[%emt 0:00:56]} 31. Rf1 {[%emt 0:06:05]} f5 {[%emt 0:02:07]} 32. Nf3 {[%emt 0:01:01]} Ne6 {[%emt 0:00:12]} 33. a4 {[%emt 0:01:38]} Kf6 {[%emt 0:01:02]} 34. Re1 {[%emt 0:02:14]} Re7 {[%emt 0:01:38]} 35. Kc2 {[%emt 0:01:18]} Nd8 {[%emt 0:01:32]} 36. Bd2 {[%emt 0:02:27]} Rxe1 {[%emt 0:00:49]} 37. Bxe1 {[%emt 0:00:01]} Nc6 {[%emt 0:00:42]} 38. c4 {[%emt 0:01:26]} d4 {[%emt 0:00:36]} 39. Bd2 {[%emt 0:00:40]} Be7 {[%emt 0:00:08]} 40. h4 {[%emt 0:04:44]} Ke6 {[%emt 0:00:28]} 41. Kb3 {[%emt 0:01:55]} a5 {[%emt 0:04:27]} 42. Kc2 {[%emt 0:00:34]} Bd8 {[%emt 0:00:07]} 43. Kd1 {[%emt 0:00:18]} Be7 {[%emt 0:00:05]} 44. Ke2 {[%emt 0:00:12]} Bd8 {[%emt 0:00:06]} 45. Kf2 {[%emt 0:00:14]} Bf6 {[%emt 0:00:21]} 46. Ke2 {[%emt 0:00:07]} Bd8 {[%emt 0:00:08]} 47. Kf2 {[%emt 0:00:11]} Bf6 {[%emt 0:00:05]} 48. Ke2 {[%emt 0:00:06]} Bd8 {[%emt 0:00:03]} 1/2-1/2

[Event "22nd Trieste Masters Open 2020"]
[Site "Trieste"]
[Date "2020.09.01"]
[Round "5.2"]
[White "Moroni, Luca Jr"]
[Black "Brunello, Sabino"]
[Result "1/2-1/2"]
[ECO "D52"]
[WhiteElo "2530"]
[BlackElo "2532"]
[Annotator "RC"]
[PlyCount "64"]
[EventDate "2020.08.31"]
[EventType "swiss"]
[EventCountry "ITA"]
[SourceTitle "playchess.com"]
[Source "ChessBase"]
[SourceQuality "1"]
[TimeControl "5400+30"]

1. d4 {[%emt 0:00:00]} d5 {[%emt 0:00:02]} 2. c4 {[%emt 0:00:00]} c6 {[%emt 0:00:16]} 3. Nf3 {[%emt 0:00:00]} Nf6 {[%emt 0:00:51]} 4. Nc3 {[%emt 0:00:00]} e6 {[%emt 0:03:08]} 5. Bg5 {[%emt 0:00:00]} Nbd7 {[%emt 0:00:58]} 6. e3 {[%emt 0:00:00]} Qa5 {[%emt 0:00:28]} 7. Nd2 {[%emt 0:00:14]} dxc4 {[%emt 0:01:48]} 8. Bxf6 {[%emt 0:00:21]} Nxf6 {[%emt 0:00:08]} 9. Nxc4 {[%emt 0:00:06]} Qc7 {[%emt 0:01:01]} 10. g3 {[%emt 0:00:10]} b5 {[%emt 0:12:15]} 11. Nd2 {[%emt 0:15:26]} Bb7 {[%emt 0:05:56]} 12. Bg2 {[%emt 0:01:26]} a6 {[%emt 0:04:50]} 13. O-O {[%emt 0:08:53]} c5 {[%emt 0:03:34]} 14. dxc5 {[%emt 0:02:46]} Bxg2 {[%emt 0:13:36]} 15. Kxg2 {[%emt 0:01:15]} Qb7+ {[%emt 0:00:03]} 16. Qf3 {[%emt 0:01:37]} Qxf3+ {[%emt 0:00:09]} 17. Kxf3 {[%emt 0:07:13]} Bxc5 {[%emt 0:00:10]} 18. a4 {[%emt 0:01:34]} bxa4 {[%emt 0:12:56]} 19. Rxa4 {[%emt 0:06:18]} O-O {[%emt 0:06:31]} 20. Rfa1 {[%emt 0:01:08]} Rab8 {[%emt 0:01:52]} 21. R1a2 {[%emt 0:06:42]} Bb4 {[%emt 0:07:27]} 22. Rxa6 {[%emt 0:03:47]} Rfc8 {[%emt 0:00:02]} 23. Nde4 {[%emt 0:01:58]} Nd7 {[%emt 0:01:07]} 24. Kg2 {[%emt 0:01:33]} Ne5 {[%emt 0:02:40]} 25. Ne2 {[%emt 0:05:17]} Bf8 {[%emt 0:03:44]} 26. Nd4 {[%emt 0:05:40]} Nd3 {[%emt 0:01:51]} 27. Ra7 {[%emt 0:05:41]} h6 {[%emt 0:06:29]} 28. b3 {[%emt 0:03:52]} Nc5 {[%emt 0:00:23]} 29. Nd2 {[%emt 0:03:09]} Nd3 {[%emt 0:00:33]} 30. Ne4 {[%emt 0:02:23]} Nc5 {[%emt 0:10:12]} 31. Nxc5 {[%emt 0:01:12]} Bxc5 {[%emt 0:00:00]} 32. Rd7 {[%emt 0:00:17]} Bxd4 {[%emt 0:00:00]} 1/2-1/2